fUSD/lending_fUSD_20250811
["ID","MTS","AMOUNT","RATE_DAILY","PERIOD"]
[378568444,1754913159090,-233.179466,0.00018972,2]
[378568445,1754913159100,-233.179466,0.00018972,2]
[378568446,1754913159110,-233.179466,0.00018972,2]
[378568447,1754913159119,-233.179466,0.00018972,2]
[378568448,1754913159128,-181.712587,0.00018972,2]
[378568449,1754913159137,-181.712587,0.00018972,2]
[378568450,1754913159147,-181.712587,0.00018972,2]
[378568451,1754913159157,-181.712587,0.00018972,2]
[378568452,1754913159168,-181.712587,0.00018972,2]
[378568453,1754913159181,-181.712587,0.00018972,2]
[378568454,1754913159191,-181.712587,0.00018972,2]
[378568455,1754913159204,-181.712587,0.00018972,2]
[378568456,1754913159215,-289.160756,0.00018972,2]
[378568457,1754913159226,-289.160756,0.00018972,2]
[378568458,1754913159236,-289.160756,0.00018972,2]
[378568459,1754913159246,-289.160756,0.00018972,2]
[378568460,1754913159257,-289.160756,0.00018972,2]
[378568461,1754913159273,-289.160756,0.00018972,2]
[378568462,1754913159282,-668.872408,0.00018972,2]
[378568463,1754913159292,-668.872408,0.00018972,2]
[378568464,1754913159302,-668.872408,0.00018972,2]
[378568465,1754913159312,-668.872408,0.00018972,2]
[378568466,1754913159322,-668.872408,0.00018972,2]
[378568467,1754913159332,-668.872408,0.00018972,2]
[378568468,1754913159342,-668.872408,0.00018972,2]
[378568469,1754913159354,-668.872408,0.00018972,2]
[378568470,1754913159364,-151.0,0.00018972,2]
[378568471,1754913159374,-151.0,0.00018972,2]
[378568472,1754913159384,-151.0,0.00018972,2]
[378568473,1754913159395,-150.0,0.00018972,2]
[378568474,1754913159406,-522.11880525,0.00018972,2]
[378568475,1754913159417,-354.30507484,0.00018972,2]
[378568476,1754913159432,-953.56895588,0.00018972,2]
[378568477,1754913159443,-90143.99335552,0.00018973,2]
[378568478,1754913160412,-24289.6617906,0.00018973,2]
[378568479,1754913160428,-151.0,0.00018973,2]
[378568480,1754913160446,-279.724784,0.00018973,2]
[378568481,1754913160461,-279.724784,0.00018973,2]
[378568482,1754913160478,-232.267498,0.00018973,2]
[378568483,1754913160494,-151.0,0.00018973,2]
[378568484,1754913160509,-1914.410062,0.00018973,2]
[378568485,1754913160524,-1914.410062,0.00018973,2]
[378568486,1754913160541,-727.459406,0.00018973,2]
[378568487,1754913160557,-727.459406,0.00018973,2]
[378568488,1754913160573,-918.212339,0.00018973,2]
[378568489,1754913160588,-918.212339,0.00018973,2]
[378568490,1754913160612,-181.712587,0.00018973,2]
[378568491,1754913160629,-181.712587,0.00018973,2]
[378568492,1754913160645,-289.160756,0.00018973,2]
[378568493,1754913160661,-289.160756,0.00018973,2]
[378568494,1754913160676,-668.872408,0.00018973,2]
[378568495,1754913160690,-668.872408,0.00018973,2]
[378568496,1754913160699,-469.22349455,0.00018974,2]
[378568497,1754913160709,-346.83719605,0.00018974,2]
[378568498,1754913160718,-1777.85996817,0.00018974,2]
[378568499,1754913160728,-326.37039073,0.00018975,2]
[378568500,1754913160738,-895.64826551,0.00018975,2]
[378568501,1754913160747,-1430.35343379,0.00018976,2]
[378568502,1754913160757,-383.14845669,0.00018976,2]
[378568503,1754913160765,-1430.35343379,0.00018976,2]
[378568504,1754913160774,-326.37039073,0.00018977,2]
[378568505,1754913160784,-451.37155493,0.00018977,2]
[378568506,1754913160793,-167.62,0.00018979,2]
[378568507,1754913160803,-910.16829277,0.00018979,2]
[378568508,1754913160812,-279.724784,0.0001898,2]
[378568509,1754913160822,-279.724784,0.0001898,2]
[378568510,1754913160832,-151.0,0.0001898,2]
[378568511,1754913160842,-1914.410062,0.0001898,2]
[378568512,1754913160852,-1914.410062,0.0001898,2]
[378568513,1754913160862,-727.459406,0.0001898,2]
[378568514,1754913160871,-727.459406,0.0001898,2]
[378568515,1754913160881,-451.699342,0.0001898,2]
[378568516,1754913160891,-451.699334,0.0001898,2]
[378568517,1754913160900,-3439.26243,0.0001898,2]
[378568518,1754913160910,-918.212339,0.0001898,2]
[378568519,1754913160919,-918.212339,0.0001898,2]
[378568520,1754913160930,-2600.325667,0.0001898,2]
[378568521,1754913160939,-2600.325658,0.0001898,2]
[378568522,1754913160948,-233.179466,0.0001898,2]
[378568523,1754913160958,-233.179472,0.0001898,2]
[378568524,1754913160968,-181.712587,0.0001898,2]
[378568525,1754913160977,-181.712587,0.0001898,2]
[378568526,1754913160986,-289.160756,0.0001898,2]
[378568527,1754913160996,-289.160756,0.0001898,2]
[378568528,1754913161005,-668.872408,0.0001898,2]
[378568529,1754913161015,-668.872408,0.0001898,2]
[378568530,1754913161025,-151.0,0.0001898,2]
[378568531,1754913161035,-279.724784,0.00018981,2]
[378568532,1754913161044,-279.724784,0.00018981,2]
[378568533,1754913161054,-151.0,0.00018981,2]
[378568534,1754913161063,-1914.410062,0.00018981,2]
[378568535,1754913161073,-1914.410062,0.00018981,2]
[378568536,1754913161083,-1500.0,0.00018981,7]
[378568537,1754913161092,-1500.0,0.00018981,7]
[378568538,1754913161102,-1284.655287,0.00018981,7]
[378568539,1754913161111,-727.459406,0.00018981,2]
[378568540,1754913161121,-727.459406,0.00018981,2]
[378568541,1754913161130,-918.212339,0.00018981,2]
[378568542,1754913161140,-918.212339,0.00018981,2]
[378568543,1754913161149,-181.712587,0.00018981,2]
[378568544,1754913161158,-181.712587,0.00018981,2]
[378568545,1754913161168,-289.160756,0.00018981,2]
[378568546,1754913161177,-289.160756,0.00018981,2]
[378568547,1754913161189,-668.872408,0.00018981,2]
[378568548,1754913161198,-668.872408,0.00018981,2]
[378568549,1754913161208,-150.0,0.00018981,2]
[378568550,1754913161218,-1582.81564178,0.00018982,2]
[378568551,1754913161227,-1430.35343379,0.00018982,2]
[378568552,1754913161237,-326.37039073,0.00018982,2]
[378568553,1754913161247,-2017.31405324,0.00018983,2]
[378568554,1754913161258,-910.16829277,0.00018983,2]
[378568555,1754913161270,-215.37651333,0.00018984,2]
[378568556,1754913161280,-245.4,0.00018984,2]
[378568557,1754913161290,-245.4,0.00018984,2]
[378568558,1754913161300,-151.0,0.00018984,2]
[378568559,1754913161310,-310.002643,0.00018984,2]
[378568560,1754913161320,-310.002643,0.00018984,2]
[378568561,1754913161329,-151.0,0.00018984,2]
[378568562,1754913161340,-279.724784,0.00018984,2]
[378568563,1754913161351,-279.724784,0.00018984,2]
[378568564,1754913161361,-318.810415,0.00018984,2]
[378568565,1754913161370,-318.810415,0.00018984,2]
[378568566,1754913161379,-151.0,0.00018984,2]
[378568567,1754913161389,-1914.410062,0.00018984,2]
[378568568,1754913161398,-1914.410068,0.00018984,2]
[378568569,1754913161408,-727.459406,0.00018984,2]
[378568570,1754913161417,-727.459412,0.00018984,2]
[378568571,1754913161427,-918.212339,0.00018984,2]
[378568572,1754913161440,-918.212333,0.00018984,2]
[378568573,1754913161449,-181.712587,0.00018984,2]
[378568574,1754913161459,-181.712582,0.00018984,2]
[378568575,1754913161468,-289.160756,0.00018984,2]
[378568576,1754913161478,-289.160754,0.00018984,2]
[378568577,1754913161487,-668.872408,0.00018984,2]
[378568578,1754913161497,-668.872404,0.00018984,2]
[378568579,1754913161507,-2451.81246471,0.00018984,2]
[378568580,1754913161516,-354.30507484,0.00018985,2]
[378568581,1754913161526,-2886.31087618,0.00018985,2]
[378568582,1754913161535,-3320.80928765,0.00018986,2]
[378568583,1754913161544,-346.83719605,0.00018987,2]
[378568584,1754913161553,-5838.56535,0.00018987,2]
[378568585,1754913161562,-3755.30769912,0.00018987,2]
[378568586,1754913161571,-4189.80611058,0.00018988,2]
[378568587,1754913161580,-354.30507484,0.00018989,2]
[378568588,1754913161590,-4624.30452205,0.00018989,2]
[378568589,1754913161599,-903.22186472,0.00018989,2]
[378568590,1754913162529,-346.83719605,0.00018989,2]
[378568591,1754913162548,-1260.97171067,0.0001899,2]
[378568592,1754913162571,-205.2837154,0.0001899,2]
[378568593,1754913162594,-5058.80293352,0.0001899,2]
[378568594,1754913162612,-6597.58328594,0.0001899,2]
[378568595,1754913162632,-5513.82314198,0.0001899,2]
[378568596,1754913162651,-903.22186472,0.0001899,2]
[378568597,1754913162662,-175.69708408,0.0001899,2]
[378568598,1754913162671,-895.64826551,0.00018991,2]
[378568599,1754913162683,-506.13784008,0.00018991,2]
[378568600,1754913162692,-2979.90298698,0.00018992,2]
[378568601,1754913162702,-903.22186472,0.00018992,2]
[378568602,1754913162711,-179.94000802,0.00018992,2]
[378568603,1754913162719,-309.87175975,0.00018992,2]
[378568604,1754913162727,-526.42968914,0.00018993,2]
[378568605,1754913162737,-2709.66559406,0.00018993,2]
[378568606,1754913162746,-175.69708408,0.00018993,2]
[378568607,1754913162755,-326.37039073,0.00018994,2]
[378568608,1754913162764,-522.11880525,0.00018994,2]
[378568609,1754913162774,-903.22186472,0.00018994,2]
[378568610,1754913162783,-24913.11708189,0.00018995,2]
[378568611,1754913162793,-903.22186472,0.00018995,2]
[378568612,1754913162803,-289.03099675,0.00018995,2]
[378568613,1754913162812,-248.22605613,0.00018995,2]
[378568614,1754913162821,-175.69708408,0.00018995,2]
[378568615,1754913162830,-451.37155493,0.00018995,2]
[378568616,1754913162840,-80494.2358147,0.00018995,2]
[378568617,1754913162849,-895.64826551,0.00018996,2]
[378568618,1754913162859,-5513.82314204,0.00018996,2]
[378568619,1754913162868,-1220.00483634,0.00018996,2]
[378568620,1754913162877,-1430.35343379,0.00018996,2]
[378568621,1754913162886,-1777.85996817,0.00018996,2]
[378568622,1754913162894,-107142.5817346,0.00018996,2]
[378568623,1754913162903,-189.246881,0.00018996,2]
[378568624,1754913162912,-189.246881,0.00018996,2]
[378568625,1754913162922,-151.0,0.00018996,2]
[378568626,1754913162932,-172.661456,0.00018996,2]
[378568627,1754913162941,-172.661456,0.00018996,2]
[378568628,1754913162950,-151.0,0.00018996,2]
[378568629,1754913162959,-331.785494,0.00018996,2]
[378568630,1754913162968,-331.785494,0.00018996,2]
[378568631,1754913162977,-216.042072,0.00018996,2]
[378568632,1754913162987,-216.042072,0.00018996,2]
[378568633,1754913162996,-152.345779,0.00018996,2]
[378568634,1754913163006,-152.345779,0.00018996,2]
[378568635,1754913163016,-164.888846,0.00018996,2]
[378568636,1754913163026,-164.888846,0.00018996,2]
[378568637,1754913163035,-245.4,0.00018996,2]
[378568638,1754913163044,-245.4,0.00018996,2]
[378568639,1754913163054,-151.0,0.00018996,2]
[378568640,1754913163064,-310.002643,0.00018996,2]
[378568641,1754913163075,-310.002643,0.00018996,2]
[378568642,1754913163084,-151.0,0.00018996,2]
[378568643,1754913163093,-279.724784,0.00018996,2]
[378568644,1754913163102,-279.724784,0.00018996,2]
[378568645,1754913163112,-318.810415,0.00018996,2]
[378568646,1754913163122,-318.810415,0.00018996,2]
[378568647,1754913163131,-522.11880525,0.00018996,2]
[378568648,1754913163140,-80494.2358147,0.00018996,2]
[378568649,1754913163150,-174.87126653,0.00018997,2]
[378568650,1754913163159,-5513.82314198,0.00018997,2]
[378568651,1754913163169,-895.64826551,0.00018997,2]
[378568652,1754913163178,-174.87126653,0.00018997,2]
[378568653,1754913163191,-1220.00483634,0.00018997,2]
[378568654,1754913163200,-895.64826551,0.00018998,2]
[378568655,1754913163209,-903.22186472,0.00018998,2]
[378568656,1754913163218,-80494.2358147,0.00018998,2]
[378568657,1754913163228,-953.56895588,0.00018998,2]
[378568658,1754913163238,-903.22186472,0.00018998,2]
[378568659,1754913163247,-289.03099675,0.00018998,2]
[378568660,1754913163257,-177.10024815,0.00018999,2]
[378568661,1754913163271,-175.69708408,0.00018999,2]
[378568662,1754913163280,-24029.25922613,0.00018999,2]
[378568663,1754913163290,-1000.0,0.00018999,2]
[378568664,1754913163299,-1000.0,0.00018999,2]
[378568665,1754913163310,-1000.0,0.00018999,2]
[378568666,1754913163319,-1000.0,0.00018999,2]
[378568667,1754913163328,-151.0,0.00018999,2]
[378568668,1754913163338,-151.0,0.00018999,2]
[378568669,1754913163348,-1000.0,0.00018999,2]
[378568670,1754913163357,-1000.0,0.00018999,2]
[378568671,1754913163366,-151.0,0.00018999,2]
[378568672,1754913163375,-331.785494,0.00018999,2]
[378568673,1754913163384,-331.785494,0.00018999,2]
[378568674,1754913163393,-152.345779,0.00018999,2]
[378568675,1754913163402,-152.345779,0.00018999,2]
[378568676,1754913163411,-164.888846,0.00018999,2]
[378568677,1754913163420,-164.888846,0.00018999,2]
[378568678,1754913163429,-26164.46021263,0.00018999,7]
[378568679,1754913163441,-9246.24344921,0.00018999,2]
[378568680,1754913163450,-279.724784,0.00018999,2]
[378568681,1754913163459,-279.724786,0.00018999,2]
[378568682,1754913163467,-1020.51,0.00018999,2]
[378568683,1754913163477,-150.0,0.00018999,2]
[378568684,1754913163487,-201.27594546,0.00018999,2]
[378568685,1754913163496,-346.83719605,0.00018999,2]
[378568686,1754913163505,-177.10024815,0.00019,2]
[378568687,1754913163515,-2979.90298698,0.00019,2]
[378568688,1754913163524,-1430.35343379,0.00019,2]
[378568689,1754913163533,-1082614.15494687,0.00019,2]
[378568690,1754913163547,-582562.47391287,0.00019,2]
[378568691,1754913163601,-509.9924562,0.00019,2]
[378568692,1754913163612,-1242.93622947,0.00019,2]
[378568693,1754913163632,-541.62445978,0.00018267,2]
[378568694,1754913163643,-405.25294358,0.00018267,2]
[378568695,1754913163653,-602.25,0.00018267,2]
[378568696,1754913163664,-359.56729992,0.00018267,2]
[378568697,1754913165027,-215.74147367,0.00015532,2]
[378568698,1754913165640,-284.25852633,0.00015532,2]
[378568699,1754913165650,-212.11560082,0.00015532,2]
[378568700,1754913165660,-400.0,0.00016622,2]
[378568701,1754913165669,-400.0,0.00016623,2]
[378568702,1754913165679,-400.0,0.00016623,2]
[378568703,1754913165689,-400.0,0.00016623,2]
[378568704,1754913165699,-400.0,0.00016623,2]
[378568705,1754913165708,-300.0,0.00016624,2]
[378568706,1754913165718,-400.0,0.00016624,2]
[378568707,1754913165728,-400.0,0.00016625,2]
[378568708,1754913165738,-545.33,0.00016625,2]
[378568709,1754913165748,-400.0,0.00016626,2]
[378568710,1754913165757,-547.47,0.00016897,2]
[378568711,1754913165767,-223.679799,0.00016898,2]
[378568712,1754913165777,-223.679799,0.00016899,2]
[378568713,1754913165786,-2066.07,0.00017995,2]
[378568714,1754913165796,-5497.07529672,0.00018267,2]
[378568715,1754913165806,-2066.07,0.00018269,2]
[378568716,1754913165815,-7405.77,0.00018541,2]
[378568717,1754913165825,-2066.07,0.00018543,2]
[378568718,1754913165834,-664.78663913,0.00018815,2]
[378568719,1754913166270,-260.7870502,0.00016622,2]
[378568720,1754913166282,-139.2129498,0.00016622,2]
[378568721,1754913166292,-207.76095541,0.00016899,2]
[378568722,1754913167522,-209.13347381,0.00015532,2]
[378568723,1754913167532,-189.19385741,0.00015532,2]
[378568724,1754913167541,-73.83791324,0.00016622,2]
[378568725,1754913167714,-326.16208676,0.00016622,2]
[378568726,1754913167723,-400.0,0.00016623,2]
[378568727,1754913167733,-400.0,0.00016623,2]
[378568728,1754913167742,-400.0,0.00016623,2]
[378568729,1754913167751,-400.0,0.00016623,2]
[378568730,1754913167761,-400.0,0.00016625,2]
[378568731,1754913167772,-704.963611,0.00016673,2]
[378568732,1754913167781,-400.0,0.00016896,2]
[378568733,1754913167791,-400.0,0.00016897,2]
[378568734,1754913167800,-704.963611,0.00016898,2]
[378568735,1754913167810,-337.56904459,0.00016899,2]
[378568736,1754913167820,-223.679799,0.000169,2]
[378568737,1754913167829,-223.679799,0.00016901,2]
[378568738,1754913167838,-223.679799,0.00016901,2]
[378568739,1754913167848,-223.679799,0.00016982,2]
[378568740,1754913167857,-400.0,0.0001717,2]
[378568741,1754913167867,-545.33,0.00017173,2]
[378568742,1754913167876,-223.679799,0.00017173,2]
[378568743,1754913167886,-223.679799,0.00017174,2]
[378568744,1754913167896,-151.0,0.0001735,2]
[378568745,1754913167905,-400.0,0.00017444,2]
[378568746,1754913167916,-545.33,0.00017447,2]
[378568747,1754913167925,-400.0,0.00017718,2]
[378568748,1754913167936,-545.33,0.00017721,2]
[378568749,1754913167945,-397.72707211,0.00017992,2]
[378568750,1754913178293,520.0,0.00014795,2]
[378568753,1754913191980,-155.14,0.00015925,2]
[378568754,1754913200049,-359.53360583,0.00015991,2]
[378568755,1754913207882,-204.39360583,0.00015864,2]
[378568756,1754913208527,501.0,0.00013795,2]
[378568757,1754913221449,150.82,0.00012668,2]
[378568784,1754913449904,-1392.45,0.00015699,2]
[378568785,1754913449926,-1000.0,0.0001575,2]
[378568786,1754913449945,-1089.18,0.00015757,2]
[378568787,1754913449965,-170.05,0.00015785,2]
[378568788,1754913449986,-202.50441896,0.00015798,2]
[378568789,1754913450008,-498.48092057,0.00015798,2]
[378568790,1754913450031,-175.45705663,0.00015798,2]
[378568791,1754913450052,-1200.0,0.00015798,2]
[378568792,1754913450075,-300.0,0.00015798,2]
[378568793,1754913450096,-300.0,0.00015798,2]
[378568794,1754913450118,-10056.76,0.00015799,2]
[378568795,1754913450139,-200.0,0.00015836,2]
[378568796,1754913450160,-9953.08639417,0.00015864,2]
[378568797,1754913450181,-1538.65639417,0.00015991,2]
[378568800,1754913495560,513.0,0.00013795,2]
[378568802,1754913502464,250.0,0.00015767,2]
[378568804,1754913522587,186.54,0.00015767,2]
[378568808,1754913555462,503.0,0.00015513,2]
[378568811,1754913584610,1742.44,0.00015773,2]
[378568817,1754913643264,358.07,0.00013699,2]
[378568819,1754913721273,289.96,0.00015739,2]
[378568821,1754913855273,6509.84,0.00015697,2]
[378568822,1754913859563,216.12,0.00015697,2]
[378568825,1754913978727,151.95,0.00015642,2]
[378568826,1754913978933,151.95,0.00015651,2]
[378568827,1754913979336,151.95,0.0001566,2]
[378568828,1754913979561,151.95,0.0001567,2]
[378568829,1754913979784,151.95,0.00015679,2]
[378568830,1754913979978,151.95,0.00015688,2]
[378568831,1754913980180,151.95,0.00015697,2]
[378568832,1754913980470,151.95,0.00015706,2]
[378568833,1754913980684,151.95,0.00015716,2]
[378568834,1754913980899,151.95,0.00015725,2]
[378568835,1754913981112,151.95,0.00015734,2]
[378568836,1754913981335,151.95,0.00015743,2]
[378568837,1754913981750,151.95,0.00015752,2]
[378568838,1754913981966,151.95,0.00015762,2]
[378568839,1754913982161,151.95,0.00015771,2]
[378568840,1754913983295,151.95,0.0001578,2]
[378568841,1754913983373,151.95,0.00015789,2]
[378568842,1754913983459,151.95,0.00015799,2]
[378568845,1754914101954,167.6,0.00015565,2]
[378568846,1754914103301,183.45,0.00012452,2]
[378568847,1754914164043,150.0,0.00015528,2]
[378568848,1754914174823,2751.0,0.00015528,2]
[378568849,1754914186318,51054.39130971,0.00015745,2]
[378568850,1754914190034,11736.44,0.00015562,2]
[378568851,1754914191545,200.0,0.00015562,2]
[378568858,1754914231676,-591.93524113,0.00016134,2]
[378568859,1754914231687,-171.82219273,0.00016134,2]
[378568860,1754914231697,-171.82219271,0.00016146,2]
[378568861,1754914231711,-171.82219271,0.00016159,2]
[378568862,1754914231722,-169.66,0.00016162,2]
[378568863,1754914231732,-300.0,0.00016234,2]
[378568864,1754914231742,-250.0,0.00016234,2]
[378568865,1754914231752,-192.55222464,0.00016271,2]
[378568866,1754914231761,-1090.9034109,0.00016295,2]
[378568867,1754914231771,-193.16,0.00016306,2]
[378568868,1754914231780,-150.0,0.00016314,2]
[378568869,1754914231790,-150.0,0.00016367,2]
[378568870,1754914231801,-300.0,0.00016371,2]
[378568871,1754914231810,-250.0,0.00016371,2]
[378568872,1754914231819,-379.56971026,0.00016382,2]
[378568873,1754914231828,-150.0,0.00016488,2]
[378568874,1754914231838,-150.0,0.00016509,2]
[378568875,1754914231847,-300.0,0.00016514,2]
[378568876,1754914231856,-300.0,0.00016514,2]
[378568877,1754914231865,-1200.0,0.00016514,2]
[378568878,1754914231875,-2183.31810187,0.00016515,2]
[378568879,1754914231884,-231.28369723,0.00016515,2]
[378568880,1754914231894,-1200.0,0.00016521,2]
[378568881,1754914231903,-197.54712941,0.00016522,2]
[378568882,1754914231912,-5000.0,0.00016523,2]
[378568883,1754914231921,-579.51708729,0.00016524,2]
[378568884,1754914231930,-186.39396633,0.00016524,2]
[378568885,1754914231939,-550.0,0.00016524,2]
[378568887,1754914231949,-203.48117609,0.00016524,2]
[378568888,1754914231958,-19882.2437,0.00016525,2]
[378568889,1754914231967,-2264.10087164,0.0001657,2]
[378568890,1754914231977,-200.0,0.000166,6]
[378568891,1754914231986,-1086.72,0.00016612,2]
[378568892,1754914231995,-262.10162769,0.00016612,2]
[378568893,1754914232004,-151.0,0.00016612,2]
[378568894,1754914232014,-417.84720818,0.00016612,2]
[378568895,1754914232023,-346.92554585,0.00016612,2]
[378568896,1754914232034,-151.0,0.00016612,2]
[378568897,1754914232044,-151.0,0.00016612,2]
[378568898,1754914232054,-500.0,0.00016612,2]
[378568899,1754914232064,-151.0,0.00016612,2]
[378568900,1754914232073,-151.0,0.00016612,2]
[378568901,1754914232084,-160.0,0.00016612,2]
[378568902,1754914232094,-151.0,0.00016612,2]
[378568903,1754914232104,-151.0,0.00016612,2]
[378568904,1754914232114,-151.0,0.00016612,2]
[378568905,1754914232124,-151.0,0.00016612,2]
[378568906,1754914232134,-151.0,0.00016612,2]
[378568907,1754914232144,-151.0,0.00016612,2]
[378568908,1754914232154,-151.0,0.00016612,2]
[378568909,1754914232163,-151.0,0.00016612,2]
[378568910,1754914232174,-600.0,0.00016612,2]
[378568911,1754914232184,-155.54810699,0.00016612,2]
[378568912,1754914232193,-1207.11406189,0.00016612,2]
[378568913,1754914232203,-500.0,0.00016612,2]
[378568914,1754914232213,-200.0,0.00016612,2]
[378568915,1754914232223,-600.0,0.00016612,2]
[378568916,1754914232232,-500.0,0.00016612,2]
[378568917,1754914232241,-600.0,0.00016612,2]
[378568918,1754914232251,-500.0,0.00016612,2]
[378568919,1754914232261,-600.0,0.00016612,2]
[378568920,1754914232270,-500.0,0.00016612,2]
[378568921,1754914232280,-500.0,0.00016612,2]
[378568922,1754914232289,-500.0,0.00016612,2]
[378568923,1754914232300,-272.22081911,0.00016612,2]
[378568924,1754914232310,-164.91077251,0.00016612,2]
[378568925,1754914232320,-384.69849228,0.00016612,2]
[378568926,1754914232329,-1167.95341142,0.0001662,5]
[378568927,1754914232339,-348.9366444,0.00016621,2]
[378568928,1754914232348,-681.76,0.00016621,2]
[378568929,1754914232357,-799.49,0.00016621,2]
[378568930,1754914232366,-1695.93,0.00016621,2]
[378568931,1754914232376,-3023.37,0.00016621,2]
[378568932,1754914232385,-1129.74,0.00016621,2]
[378568933,1754914232395,-745.49,0.00016621,2]
[378568934,1754914232404,-910.93,0.00016621,2]
[378568935,1754914232413,-402.25856062,0.00016621,2]
[378568936,1754914232422,-400.0,0.00016621,2]
[378568937,1754914232431,-460.67866527,0.00016621,2]
[378568938,1754914232441,-404.94556351,0.00016621,2]
[378568939,1754914232450,-3968.67,0.00016621,2]
[378568940,1754914232460,-404.04176677,0.00016621,2]
[378568941,1754914232469,-439.42,0.00016621,2]
[378568942,1754914232479,-1022.12,0.00016621,2]
[378568943,1754914232488,-400.0,0.00016621,2]
[378568944,1754914232497,-1231.07,0.00016621,2]
[378568945,1754914232507,-400.0,0.00016621,2]
[378568946,1754914232516,-400.0,0.00016621,2]
[378568947,1754914232525,-400.0,0.00016621,2]
[378568948,1754914232534,-400.0,0.00016621,2]
[378568949,1754914232544,-1816.84,0.00016621,2]
[378568950,1754914232553,-898.39,0.00016621,2]
[378568951,1754914232563,-400.0,0.00016621,2]
[378568952,1754914232577,-400.0,0.00016621,2]
[378568953,1754914232586,-4361.98,0.00016621,2]
[378568954,1754914232595,-400.0,0.00016621,2]
[378568955,1754914232605,-3634.44,0.00016621,2]
[378568956,1754914232615,-400.0,0.00016621,2]
[378568957,1754914232624,-2617.02,0.00016621,2]
[378568958,1754914232633,-1068.98,0.00016621,2]
[378568959,1754914232643,-1550.64,0.00016621,2]
[378568960,1754914232653,-512.32,0.00016621,2]
[378568961,1754914232954,-1710.46,0.00016621,2]
[378568962,1754914232964,-1003.11,0.00016621,2]
[378568963,1754914232974,-400.0,0.00016621,2]
[378568964,1754914232984,-1341.22,0.00016621,2]
[378568965,1754914232993,-400.0,0.00016621,2]
[378568966,1754914233003,-771.61,0.00016622,2]
[378568967,1754914233012,-705.25,0.00016622,2]
[378568968,1754914233022,-842.15,0.00016622,2]
[378568969,1754914233031,-400.0,0.00016622,2]
[378568970,1754914233040,-400.0,0.00016622,2]
[378568971,1754914233050,-400.0,0.00016622,2]
[378568972,1754914233059,-403.21906295,0.00016622,2]
[378568973,1754914233069,-400.0,0.00016622,2]
[378568974,1754914233079,-1024.69,0.00016622,2]
[378568975,1754914233088,-470.78,0.00016622,2]
[378568976,1754914233098,-856.01,0.00016622,2]
[378568977,1754914233107,-400.0,0.00016622,2]
[378568978,1754914233117,-400.0,0.00016622,2]
[378568979,1754914233125,-1032.3,0.00016622,2]
[378568980,1754914233135,-504.2,0.00016622,2]
[378568981,1754914233146,-660.76,0.00016622,2]
[378568982,1754914233156,-1178.31,0.00016622,2]
[378568983,1754914233167,-1577.58,0.00016622,2]
[378568984,1754914233177,-400.0,0.00016622,2]
[378568985,1754914233187,-2238.85,0.00016622,2]
[378568986,1754914233197,-400.0,0.00016622,2]
[378568987,1754914233206,-400.0,0.00016622,2]
[378568988,1754914233216,-400.0,0.00016622,2]
[378568989,1754914233225,-536.97,0.00016622,2]
[378568990,1754914233235,-492.83,0.00016622,2]
[378568991,1754914233245,-400.0,0.00016622,2]
[378568992,1754914233255,-400.0,0.00016622,2]
[378568993,1754914233264,-400.0,0.00016622,2]
[378568994,1754914233274,-400.0,0.00016622,2]
[378568995,1754914233285,-400.0,0.00016622,2]
[378568996,1754914233296,-400.0,0.00016622,2]
[378568997,1754914233305,-931.87,0.00016622,2]
[378568998,1754914233315,-400.0,0.00016622,2]